fUSD/lending_fUSD_20241024
["ID","MTS","AMOUNT","RATE_DAILY","PERIOD"]
[340735324,1729749065133,-973.971,0.00063248,120]
[340735325,1729749065143,-175.102414,0.00063498,120]
[340735326,1729749065152,-1098.5188,0.00063581,14]
[340735327,1729749065161,-2005.0977,0.00063581,14]
[340735328,1729749065170,-2000.0,0.0006367,14]
[340735329,1729749065179,-150.0,0.00063673,120]
[340735330,1729749065189,-1502.63016692,0.000637,2]
[340735331,1729749065198,-4552.22061175,0.00063783,21]
[340735332,1729749065207,-3954.04,0.000638,120]
[340735333,1729749065216,-5000.0,0.00063885,120]
[340735334,1729749065226,-2731.0112637,0.0006389,120]
[340735335,1729749065236,-251.406689,0.000639,120]
[340735336,1729749065246,-1427.140822,0.00063912,3]
[340735337,1729749065255,-55213.3694175,0.00063912,3]
[340735338,1729749065264,-4035.0979026,0.00063912,3]
[340735339,1729749065274,-824.7865703,0.00063912,3]
[340735340,1729749065283,-4627.1970619,0.00063912,3]
[340735341,1729749065292,-150.0,0.0006392,120]
[340735342,1729749065301,-150.0,0.00063933,120]
[340735343,1729749065310,-832.96,0.00063954,120]
[340735344,1729749065319,-1214.0304422,0.00063956,3]
[340735345,1729749065329,-50096.7812634,0.00063956,3]
[340735346,1729749065338,-3661.1679224,0.00063956,3]
[340735347,1729749065348,-616.6798574,0.00063956,3]
[340735348,1729749065357,-3459.6819673,0.00063956,3]
[340735349,1729749065368,-150.0,0.00063973,15]
[340735350,1729749065377,-4574.62715509,0.0006399,120]
[340735351,1729749065389,-500.0,0.00063997,120]
[340735352,1729749065400,-1747.87,0.00063997,120]
[340735353,1729749065409,-1328.73,0.00063999,120]
[340735354,1729749065419,-1328.73,0.00063999,120]
[340735355,1729749065428,-1328.73,0.00063999,120]
[340735356,1729749065437,-1328.73,0.00063999,120]
[340735357,1729749065446,-1328.73,0.00063999,120]
[340735358,1729749065455,-1328.80730004,0.00063999,120]
[340735359,1729749065464,-832.96,0.00063999,120]
[340735360,1729749065479,-832.96,0.00063999,120]
[340735361,1729749065489,-832.96,0.00063999,120]
[340735362,1729749065498,-832.96,0.00063999,120]
[340735363,1729749065508,-832.96,0.00063999,120]
[340735364,1729749065517,-832.96,0.00063999,120]
[340735365,1729749065526,-833.12627441,0.00063999,120]
[340735366,1729749065535,-500.0,0.00063999,120]
[340735367,1729749065544,-1747.87,0.00063999,120]
[340735368,1729749065553,-1747.87,0.00063999,120]
[340735369,1729749065563,-1747.87,0.00063999,120]
[340735370,1729749065572,-1747.87,0.00063999,120]
[340735371,1729749065582,-1747.87,0.00063999,120]
[340735372,1729749065591,-1747.87328148,0.00063999,120]
[340735373,1729749065600,-150.0,0.00064,120]
[340735374,1729749065609,-300.0,0.00064,120]
[340735375,1729749065618,-1000000.0,0.00064,120]
[340735376,1729749065627,-150000.0,0.00064,120]
[340735377,1729749065635,-289.363,0.00064,60]
[340735378,1729749065644,-431.94,0.00064284,30]
[340735379,1729749065653,-150.0,0.00064291,120]
[340735380,1729749065662,-3388.93282411,0.00064318,15]
[340735381,1729749065671,-500000.0,0.000645,120]
[340735382,1729749065680,-1000000.0,0.000645,120]
[340735383,1729749065689,-250.0,0.00064521,15]
[340735384,1729749065698,-150.0,0.000646,120]
[340735385,1729749065707,-150.0,0.000646,120]
[340735386,1729749065715,-191.55101432,0.000649,120]
[340735387,1729749065725,-150.0,0.00064909,120]
[340735388,1729749065735,-151.0,0.00064973,2]
[340735389,1729749065744,-2500.0,0.00065,120]
[340735390,1729749065753,-500000.0,0.00065,120]
[340735391,1729749065762,-1000000.0,0.00065,120]
[340735392,1729749065771,-158.872983,0.00065,120]
[340735393,1729749065780,-1000.0,0.00065053,120]
[340735394,1729749065789,-203.90837399,0.00065068,15]
[340735395,1729749065798,-150.0,0.00065152,120]
[340735396,1729749065807,-914.68,0.00065256,2]
[340735397,1729749065816,-150.0,0.0006528,120]
[340735398,1729749065825,-158.37903487,0.000654,28]
[340735399,1729749065834,-652.41751596,0.000655,120]
[340735400,1729749065843,-1000000.0,0.000655,120]
[340735401,1729749065855,-500000.0,0.000655,120]
[340735402,1729749065864,-150.0,0.00065527,120]
[340735403,1729749065874,-684.00643227,0.00065623,120]
[340735404,1729749065887,-600.0,0.0006596,120]
[340735405,1729749065898,-150.0,0.0006596,120]
[340735406,1729749065908,-10000.0,0.0006598,30]
[340735407,1729749065919,-500000.0,0.00066,120]
[340735408,1729749065931,-1000000.0,0.00066,120]
[340735409,1729749065942,-300.0,0.00066,120]
[340735410,1729749065954,-286.31986326,0.00066,120]
[340735411,1729749065964,-20885.99843453,0.00066,30]
[340735412,1729749065975,-3388.93282411,0.00066109,15]
[340735413,1729749065984,-150.0,0.00066145,120]
[340735414,1729749065994,-150.0,0.00066248,120]
[340735415,1729749066004,-326.69,0.000663,7]
[340735416,1729749066014,-150.0,0.000663,120]
[340735417,1729749066024,-150.0,0.00066372,120]
[340735418,1729749066034,-158.872983,0.00066492,30]
[340735419,1729749066044,-203.0,0.000665,30]
[340735420,1729749066124,-206.0,0.000665,30]
[340735421,1729749066134,-297.7757624,0.000666,120]
[340735422,1729749066143,-150.0,0.0006664,120]
[340735423,1729749066152,-1849.90472799,0.0006664,120]
[340735424,1729749066162,-200.0,0.000667,120]
[340735425,1729749066170,-150.0,0.00066764,120]
[340735426,1729749066179,-50000.0,0.00067,67]
[340735427,1729749066188,-50000.0,0.00067,57]
[340735428,1729749066197,-500000.0,0.00067,120]
[340735429,1729749066206,-344.0,0.00067,120]
[340735430,1729749066215,-300.0,0.00067,60]
[340735431,1729749066225,-449.56946312,0.00067,120]
[340735432,1729749066235,-3474.0,0.00067,120]
[340735433,1729749066245,-6000.0,0.00067,120]
[340735434,1729749066254,-10102.0,0.00067,120]
[340735435,1729749066263,-150.0,0.0006732,120]
[340735436,1729749066272,-150.0,0.00067382,120]
[340735437,1729749066282,-2110.0,0.000675,2]
[340735438,1729749066291,-300.0,0.000675,60]
[340735439,1729749066300,-151.80857815,0.000675,45]
[340735440,1729749066310,-914.68,0.0006752,2]
[340735441,1729749066319,-150.0,0.00067591,120]
[340735442,1729749066328,-593.62346386,0.0006763,120]
[340735443,1729749066338,-2009.0043,0.00067659,14]
[340735444,1729749066348,-3700.0,0.000677,30]
[340735445,1729749066358,-177.29,0.000677,69]
[340735446,1729749066367,-177.29,0.000677,69]
[340735447,1729749066377,-255.25271466,0.0006789,2]
[340735448,1729749066386,-818.0,0.000679,50]
[340735449,1729749066396,-172.77066497,0.000679,111]
[340735450,1729749066405,-4117.2520277,0.000679,2]
[340735451,1729749066414,-3388.93282411,0.000679,15]
[340735452,1729749066423,-9108.29163947,0.000679,2]
[340735453,1729749066432,-1800000.0,0.0006794,30]
[340735454,1729749066441,-50000.0,0.00068,67]
[340735455,1729749066450,-50000.0,0.00068,57]
[340735456,1729749066459,-1000.0,0.00068,120]
[340735457,1729749066469,-417820.32757505,0.00068,120]
[340735458,1729749283032,10000.0,0.00024,60]
[340735459,1729749287081,10000.0,0.00024,30]
[340735460,1729749291997,10000.0,0.00024,30]
[340735461,1729749303857,8691.62959952,0.00024,120]
[340735463,1729749368764,157.23,0.00015342,2]
[340735464,1729749401107,359.03,0.0002002,2]
[340735465,1729749401131,800.0,0.0002002,2]
[340735466,1729749401151,800.0,0.0002002,2]
[340735467,1729749401171,800.0,0.0002002,2]
[340735468,1729749401190,458.58,0.0002002,2]
[340735469,1729749602624,341.42,0.0001726,2]
[340735470,1729749602644,158.58,0.0001726,2]
[340735471,1729749603083,500.0,0.0001726,2]
[340735472,1729749603331,141.42,0.0001726,2]
[340735473,1729749603352,39.75932471,0.0001726,2]
[340735474,1729749890851,160.14,0.00015342,2]
[340735475,1729749930088,-160.14,0.00045753,2]
[340735476,1729749930109,-265.76417577,0.0005,120]
[340735478,1729749943439,250.0,0.0001,2]
[340735479,1729749945597,300.0,0.00012,2]
[340735480,1729749947104,50.10067529,0.00014,2]
[340735481,1729749947125,299.89932471,0.00014,2]
[340735482,1729749948877,400.0,0.00016,2]
[340735483,1729749952112,-1190.07231575,0.0005,120]
[340735484,1729750031105,-150.0,0.00049999,9]
[340735485,1729750031125,-748.73495578,0.0005,120]
[340735500,1729750231731,-922.8622943,0.0005,120]
[340735501,1729750231742,-438.97982347,0.0005,120]
[340735502,1729750231754,-54471.51344453,0.0005,120]
[340735503,1729750231763,-486.267,0.00051779,94]
[340735504,1729750231771,-493.84227229,0.00055,120]
[340735505,1729750231781,-150.0,0.00055125,120]
[340735506,1729750231790,-6874.0,0.00057534,2]
[340735507,1729750231799,-500.0,0.00057534,120]
[340735508,1729750231808,-500.0,0.00057534,120]
[340735509,1729750231817,-500.0,0.00057534,120]
[340735510,1729750231827,-500.0,0.00057534,120]
[340735511,1729750231836,-500.0,0.00057534,120]
[340735512,1729750231845,-500.0,0.00057534,120]
[340735513,1729750231854,-500.0,0.00057534,120]
[340735514,1729750231863,-500.0,0.00057534,120]
[340735515,1729750231873,-500.0,0.00057534,120]
[340735516,1729750231882,-500.0,0.00057572,120]
[340735517,1729750231891,-3954.039999,0.0005783,120]
[340735518,1729750231900,-152.0,0.0005832,3]
[340735519,1729750231909,-500.0,0.00058476,120]
[340735520,1729750231918,-486.2036,0.00058877,120]
[340735521,1729750231927,-4100.19218562,0.00059,120]
[340735522,1729750231937,-150.0,0.0006,101]
[340735523,1729750231946,-1270.2705,0.0006112,2]
[340735524,1729750231955,-619.1008,0.0006112,2]
[340735525,1729750231965,-1000.0,0.00061961,120]
[340735526,1729750231974,-150.0,0.00062228,120]
[340735527,1729750231984,-250.0,0.00062339,120]
[340735528,1729750231993,-262.1242,0.0006244,2]
[340735529,1729750232002,-445.7348,0.0006244,2]
[340735530,1729750232012,-23900.0,0.0006254,2]
[340735531,1729750232021,-250.0,0.00062671,120]
[340735532,1729750232030,-290.3734,0.00062799,2]
[340735533,1729750232039,-22923.40934756,0.00062896,2]
[340735534,1729750232050,-2110.8431115,0.00062896,2]
[340735535,1729750232061,-479.16,0.00062896,2]
[340735536,1729750232075,-1511.57,0.00062896,2]
[340735537,1729750232086,-1322.558539,0.00062896,2]
[340735538,1729750232097,-1681.435,0.00062896,2]
[340735539,1729750232108,-3301.82961264,0.00062896,2]
[340735540,1729750237741,-1867.8261893,0.00062896,2]
[340735541,1729750237751,-150.0,0.000636,2]
[340735542,1729750237760,-218.6931,0.0006371,120]
[340735543,1729750237769,-198.40214611,0.0006371,15]
[340735544,1729750237778,-3954.04,0.000638,120]
[340735545,1729750237787,-7696.97951609,0.0006381,21]
[340735546,1729750237801,-803.02048391,0.0006381,21]
[340735547,1729750237810,-8500.0,0.00063819,21]
[340735548,1729750237819,-2992.48131144,0.00064,120]
[340735549,1729750237828,-3928.0,0.00065215,30]
[340735550,1729750237837,-198.40214609,0.00065363,15]
[340735551,1729750237846,-153.49,0.00066079,120]
[340735552,1729750237855,-486.267,0.00066334,120]
[340735553,1729750237864,-183.69,0.000668,7]
[340735554,1729750237873,-13792.90574901,0.000669,120]
[340735555,1729750237884,-1025.04488483,0.000669,120]
[340735556,1729750237895,-851.06161021,0.000669,120]
[340735557,1729750237906,-1223.06036169,0.000669,120]
[340735558,1729750237916,-293.41970148,0.000669,120]
[340735559,1729750237952,-250.0,0.000669,120]
[340735560,1729750237963,-1185.34288774,0.000669,120]
[340735561,1729750237975,-2082.44359574,0.000669,120]
[340735562,1729750237986,-16922.62668851,0.000669,120]
[340735563,1729750238029,-307.25000024,0.000669,120]
[340735564,1729750238108,-242066.84452055,0.000669,120]
[340735565,1729750238118,-198.40214609,0.00067017,15]
[340735566,1729750238128,-2500.0,0.000677,2]
[340735567,1729750238138,-1000.0,0.0006778,2]
[340735568,1729750238147,-917.4451,0.0006779,2]
[340735569,1729750238156,-42305.6101,0.000678,120]
[340735570,1729750238165,-2500.0,0.0006788,120]
[340735571,1729750238175,-35873.081195,0.0006788,16]
[340735572,1729750238184,-503.48451752,0.00067889,120]
[340735573,1729750238194,-500.0,0.00067889,120]
[340735574,1729750238203,-500.0,0.00067889,120]
[340735575,1729750238213,-500.0,0.00067889,120]
[340735576,1729750238223,-500.0,0.00067889,120]
[340735577,1729750238232,-500.0,0.00067889,120]
[340735578,1729750238243,-2402.1,0.00067889,120]
[340735579,1729750238252,-2402.1,0.00067889,120]
[340735581,1729750238262,-212.45099572,0.00067889,120]
[340735583,1729750238271,-324.52332027,0.00067889,120]
[340735585,1729750238281,-2500.0,0.00067889,120]
[340735587,1729750238290,-153.91,0.0006789,120]
[340735589,1729750238300,-37684.0534,0.0006789,2]
[340735590,1729750238310,-100000.0,0.0006789,2]
[340735591,1729750238319,-1000.0,0.0006789,30]
[340735592,1729750238328,-1534.681,0.0006789,2]
[340735593,1729750238338,-500.0,0.00067899,120]
[340735595,1729750238347,-537.98307048,0.00067899,120]
[340735597,1729750238357,-500.0,0.00067899,120]
[340735599,1729750238368,-324.93050355,0.00067899,31]
[340735601,1729750238377,-500.0,0.00067899,120]
[340735603,1729750238387,-2402.1,0.00067899,120]
[340735605,1729750238397,-2500.0,0.00067899,120]
[340735607,1729750238406,-326.8473,0.000679,2]
[340735608,1729750238416,-11575.8095,0.000679,2]
[340735611,1729750238425,-865.2825,0.000679,2]
[340735612,1729750238434,-500.0,0.000679,2]
[340735614,1729750238444,-1209.4421,0.000679,2]
[340735616,1729750238454,-22242.10670739,0.000679,2]
[340735625,1729750239766,-411.6,0.00064296,2]
[340735627,1729750239776,-411.6,0.0006656,2]
[340735629,1729750239787,-216.42437251,0.0006779,28]
[340735632,1729750239797,-2233.11136491,0.000679,2]
[340735633,1729750239808,-400.07483383,0.000679,2]
[340735634,1729750239819,-428.79321821,0.000679,2]
[340735635,1729750239830,-3281.23194796,0.000679,2]
[340735636,1729750239853,-384.03984001,0.000679,2]
[340735637,1729750239930,-41662.80370695,0.000679,2]
[340735638,1729750239943,-67605.9062983,0.000679,2]
[340735639,1729750240006,-16637.68447516,0.000679,2]
[340735640,1729750240019,-1136.399993,0.000679,2]
[340735641,1729750240030,-528.55,0.000679,2]
[340735642,1729750240042,-4700.0,0.000679,2]
[340735643,1729750240080,-699.00969299,0.000679,2]
[340735711,1729750242737,-1784.30613026,0.000679,2]
[340735712,1729750242748,-674.24,0.000679,2]
[340735713,1729750242759,-3062.1744444,0.000679,2]
[340735714,1729750242770,-273.92318214,0.000679,2]
[340735715,1729750242781,-7455.31390964,0.000679,2]
[340735716,1729750242791,-5161.16,0.000679,2]
[340735717,1729750242805,-3004.950001,0.000679,2]
[340735718,1729750242844,-1309.9999992,0.000679,2]
[340735719,1729750242856,-7314.75,0.000679,2]
[340735720,1729750242979,-2034.19535498,0.000679,2]
[340735723,1729750245703,-7125.0,0.000679,2]
[340735729,1729750245866,-3161.69551181,0.000679,2]
[340735730,1729750245902,-373.68985273,0.000679,2]
[340735731,1729750245913,-873.65546088,0.000679,2]
[340735732,1729750246102,-39451.23407425,0.000679,2]
[340735733,1729750246113,-11154.0025,0.000679,2]
[340735734,1729750246123,-7500.0,0.000679,120]
[340735735,1729750246135,-1594.86027278,0.000679,2]
[340735736,1729750246145,-908.4137977,0.00067953,5]
[340735737,1729750246155,-865.1576045,0.00067953,5]
[340735738,1729750246164,-821.9014113,0.00067953,5]
[340735739,1729750246174,-778.6452182,0.00067953,5]
[340735740,1729750246183,-735.389025,0.00067953,5]
[340735741,1729750246193,-259.37992701,0.00067973,120]
[340735742,1729750246202,-156.45595689,0.00067973,120]
[340735743,1729750246211,-242.61706657,0.00067973,120]
[340735744,1729750246221,-153.91,0.0006799,120]
[340735745,1729750246230,-153.91,0.0006799,120]
[340735746,1729750246239,-153.91,0.0006799,120]
[340735747,1729750246248,-153.91,0.0006799,120]
[340735748,1729750246257,-153.91,0.0006799,120]
[340735749,1729750246267,-153.91,0.0006799,120]
[340735750,1729750246276,-153.91,0.0006799,120]
[340735751,1729750246285,-153.91,0.0006799,120]
[340735752,1729750246294,-153.91,0.0006799,120]
[340735753,1729750246303,-2109.52,0.00067998,120]
[340735754,1729750246312,-500.0,0.00067999,120]
[340735755,1729750246321,-500.0,0.00067999,120]
[340735756,1729750246330,-500.0,0.00067999,120]
[340735757,1729750246339,-500.0,0.00067999,120]
[340735758,1729750246348,-500.0,0.00067999,120]
[340735759,1729750246357,-500.0,0.00067999,120]
[340735760,1729750246367,-500.0,0.00067999,120]
[340735761,1729750246376,-500.0,0.00067999,120]
[340735762,1729750246384,-500.0,0.00067999,120]
[340735763,1729750246395,-500.0,0.00067999,120]
[340735764,1729750246404,-500.0,0.00067999,120]
[340735765,1729750246414,-500.0,0.00067999,120]
[340735766,1729750246427,-500.0,0.00067999,120]
[340735767,1729750246438,-500.0,0.00067999,120]
[340735768,1729750246458,-500.0,0.00067999,120]
[340735769,1729750246481,-500.0,0.00067999,120]
[340735770,1729750246492,-500.0,0.00067999,120]
[340735771,1729750246507,-500.0,0.00067999,120]
[340735772,1729750246525,-500.0,0.00067999,120]
[340735773,1729750246540,-500.0,0.00067999,120]
[340735774,1729750246561,-500.0,0.00067999,120]
[340735775,1729750246576,-500.0,0.00067999,120]
[340735776,1729750246586,-500.0,0.00067999,120]
[340735777,1729750246595,-500.0,0.00067999,120]
[340735778,1729750246604,-500.0,0.00067999,120]
[340735779,1729750246614,-500.0,0.00067999,120]
[340735780,1729750246623,-500.0,0.00067999,120]
[340735781,1729750246633,-500.0,0.00067999,120]
[340735782,1729750246642,-500.0,0.00067999,120]
[340735783,1729750246652,-500.0,0.00067999,120]
[340735784,1729750246661,-500.0,0.00067999,120]
[340735785,1729750246671,-500.0,0.00067999,120]
[340735786,1729750246681,-500.0,0.00067999,120]
[340735787,1729750246690,-500.0,0.00067999,120]
[340735788,1729750246699,-500.0,0.00067999,120]
[340735789,1729750246708,-500.0,0.00067999,120]
[340735790,1729750246717,-500.0,0.00067999,120]
[340735791,1729750246726,-490.80240095,0.00067999,120]
[340735792,1729750246735,-2402.1,0.00067999,120]
[340735793,1729750246745,-2402.1,0.00067999,120]
[340735794,1729750246754,-2402.1,0.00067999,120]
[340735795,1729750246763,-2402.1,0.00067999,120]
[340735796,1729750246772,-2402.1,0.00067999,120]
[340735797,1729750246781,-1404.48435355,0.00067999,120]
[340735800,1729750460790,100.10067529,0.00015342,2]
[340735801,1729750460812,69.49932471,0.00015342,2]
[340735802,1729751225145,-329.0,0.000335,2]
[340735803,1729751225167,-703.3336175,0.000545,11]
[340735804,1729751307042,168.23,0.00019178,2]
[340735819,1729751431898,-1312.41921814,0.00041709,2]
[340735821,1729751431907,-3444.92917668,0.00041709,2]
[340735822,1729751431918,-412.95315396,0.00041709,2]
[340735823,1729751431929,-3364.52435142,0.00041709,2]
[340735824,1729751431939,-942.6663825,0.000545,11]
[340735825,1729751431948,-3954.039999,0.0005783,120]
[340735826,1729751431957,-715.3434272,0.00058764,60]
[340735827,1729751431968,-36.77122286,0.00058764,60]
[340735828,1729751431977,-243.79545146,0.00059,120]
[340735829,1729751431988,-396.48017172,0.00059,120]
[340735830,1729751432004,-643.5933116,0.00059,120]
[340735831,1729751432013,-1317.0,0.0006,101]
[340735832,1729751432022,-307.6,0.0006,120]
[340735833,1729751432150,-1035.0,0.0006,101]
[340735834,1729751432159,-14.85352084,0.00062102,2]
[340735835,1729751432171,-355.58647916,0.00062102,2]
[340735836,1729751432180,-421.28283384,0.000633,120]
[340735837,1729751432189,-278.61,0.000636,2]
[340735838,1729751432198,-2640.52595771,0.000638,120]
[340735839,1729751432209,-522.792,0.000638,120]
[340735840,1729751432274,-790.72204229,0.000638,120]
[340735841,1729751432284,-296.869,0.000638,120]
[340735842,1729751432292,-153.49,0.00064007,120]
[340735843,1729751432302,-1000.0,0.00064043,120]
[340735844,1729751432311,-250.0,0.00064181,120]
[340735845,1729751432320,-250.0,0.00064234,120]
[340735846,1729751432330,-23900.0,0.00064247,2]
[340735847,1729751432339,-370.44,0.00064366,2]
[340735848,1729751432348,-6110.53913685,0.00065,120]
[340735849,1729751432357,-7500.0,0.00065,120]
[340735850,1729751432366,-7500.0,0.00065062,120]
[340735851,1729751432375,-7500.0,0.00065125,120]
[340735852,1729751432385,-7500.0,0.00065188,120]
[340735853,1729751432394,-7500.0,0.0006525,120]
[340735854,1729751432403,-7500.0,0.00065313,120]
[340735855,1729751432413,-7500.0,0.00065375,120]
[340735856,1729751432425,-7500.0,0.00065438,120]
[340735857,1729751432434,-7500.0,0.000655,120]
[340735858,1729751432443,-2009.53087872,0.00065563,120]
[340735859,1729751437971,-207.63986597,0.00032877,2]
[340735860,1729751437983,-5490.46912128,0.00065563,120]
[340735861,1729751437992,-7500.0,0.00065625,120]
[340735862,1729751438002,-7500.0,0.00065688,120]
[340735863,1729751438012,-154.31278031,0.00065713,15]
[340735864,1729751438021,-7500.0,0.0006575,120]
[340735865,1729751438031,-621.27271278,0.00065813,120]
[340735866,1729751438044,-1987.16397049,0.00065813,120]
[340735867,1729751438054,-856.56331673,0.00065813,120]
[340735868,1729751438065,-629.34839482,0.000659,12]
[340735869,1729751438074,-1985.67664345,0.000659,120]
[340735870,1729751438123,-976.27880885,0.000659,120]
[340735875,1729751439965,-835.1124477,0.000659,120]
[340735876,1729751439975,-55555.0,0.000659,120]
[340735877,1729751439985,-250.0980888,0.000659,37]
[340735878,1729751439994,-177.61,0.000659,120]
[340735879,1729751440003,-289.91136729,0.00065989,31]
[340735880,1729751440012,-1700.0,0.00065989,120]
[340735881,1729751440021,-13473.35064302,0.0006599,15]
[340735978,1729751443089,-293.44999981,0.0006589,2]
[340735979,1729751443172,-19.76704371,0.0006589,2]
[340735980,1729751443182,-6935.43295349,0.0006599,15]
[340735981,1729751443194,-26866.15183059,0.0006599,15]
[340735982,1729751443205,-993.56644484,0.0006599,15]
[340735987,1729751445795,-3213.28489036,0.0006599,15]
[340735988,1729751445811,-14573.4396376,0.0006599,15]
[340735989,1729751445822,-7792.39724776,0.0006599,13]
[340735990,1729751445831,-169856.296457,0.0006599,15]
[340735991,1729751445841,-52598.6814224,0.0006599,13]
[340735992,1729751445850,-500.0,0.00065999,120]
[340735993,1729751445860,-500.0,0.00065999,120]
[340735994,1729751445870,-500.0,0.00065999,120]
[340735995,1729751445879,-500.0,0.00065999,120]
[340735996,1729751445889,-175.39642,0.00065999,120]
[340735997,1729751445898,-500.0,0.00065999,120]
[340735998,1729751445907,-500.0,0.00065999,120]
[340735999,1729751445917,-1542.88,0.00065999,120]
[340736000,1729751445926,-1542.88,0.00065999,120]
[340736001,1729751445935,-1542.88,0.00065999,120]
[340736002,1729751445944,-1542.88,0.00065999,120]
[340736003,1729751445953,-1542.88,0.00065999,120]
[340736004,1729751445964,-1542.88,0.00065999,120]
[340736005,1729751445973,-1542.88,0.00065999,120]
[340736006,1729751445982,-1542.88,0.00065999,120]
[340736007,1729751445991,-1542.88,0.00065999,120]
[340736008,1729751446003,-1542.88,0.00065999,120]
[340736009,1729751446015,-1542.88,0.00065999,120]
[340736010,1729751446024,-1542.88,0.00065999,120]
[340736011,1729751446034,-1542.88,0.00065999,120]
[340736012,1729751446043,-2194.46,0.00065999,120]
[340736013,1729751446054,-2194.46,0.00065999,120]
[340736014,1729751446064,-500.0,0.00065999,120]
[340736015,1729751446074,-446.27880885,0.00065999,120]
[340736016,1729751446084,-163536.40903691,0.00066,62]
[340736017,1729751446093,-31809.6810059,0.00066,2]
[340736018,1729751446105,-3372.2,0.00066,2]
[340736019,1729751446117,-4370.03373236,0.00066,2]
[340736020,1729751446130,-1718.84563765,0.00066,2]
[340736021,1729751446142,-4895.12201391,0.00066,2]
[340736022,1729751446153,-6730.25962879,0.00066,2]
[340736024,1729751446164,-151096.9741299,0.00066,2]
[340736026,1729751446175,-1552.725,0.00066,2]
[340736028,1729751446186,-7368.6299918,0.00066,2]
[340736031,1729751446216,-2992.10490931,0.00066,2]
[340736044,1729751522050,300.0,0.00019725,2]
[340736045,1729751629287,165.14,0.00015342,2]
[340736048,1729752430108,-307.2656,0.00049563,120]
[340736049,1729752430129,-1134.06547602,0.0005783,120]
[340736063,1729752632114,-2819.97452298,0.0005783,120]
[340736064,1729752632123,-333.39,0.00062755,2]
[340736065,1729752632133,-3954.04,0.000638,120]
[340736066,1729752632142,-5248.73089565,0.000644,120]
[340736067,1729752632152,-6023.09354428,0.0006451,2]
[340736068,1729752632163,-583.77872087,0.0006451,2]
[340736069,1729752632175,-15454.51330581,0.0006451,2]
[340736070,1729752632197,-7084.9433037,0.0006451,2]
[340736071,1729752632333,-6514.16112534,0.0006451,2]
[340736072,1729752632343,-2576.84887466,0.00064527,63]
[340736073,1729752632354,-1328.681,0.00064527,63]
[340736084,1729752638358,-1101.8235462,0.00064527,63]
[340736085,1729752638370,-235.81657914,0.00064527,63]
[340736086,1729752638380,-914.79342086,0.00064575,2]
[340736087,1729752640227,-7855.18927003,0.00064575,2]
[340736088,1729752640238,-10397.25695412,0.00064575,2]
[340736089,1729752640277,-2839.86857622,0.00064575,2]
[340736090,1729752640288,-1452.25846956,0.00064575,2]
[340736094,1729752643339,-440.63330921,0.00064575,2]
[340736095,1729752643349,-161.77,0.00064599,120]
[340736096,1729752643359,-800.0,0.00064604,120]
[340736097,1729752643368,-74.68955351,0.00064604,120]
[340736098,1729752643380,-78.80044649,0.00064604,120]
[340736099,1729752643391,-651.19986419,0.00064604,2]
[340736100,1729752643404,-301.25385499,0.00064604,2]
[340736101,1729752643420,-1407.06628082,0.00064604,2]
[340736102,1729752643429,-250.0,0.00064625,120]
[340736103,1729752643439,-250.0,0.00064853,120]
[340736104,1729752643451,-150.0,0.00064875,12]
[340736105,1729752643461,-333.39,0.00065019,2]
[340736106,1729752643472,-200.0,0.00065595,120]
[340736107,1729752643484,-184.2235,0.000658,2]